Cogmind - Beta 11.1 @@@ ROGUE MODE // 2022.10.06 @ 23:38:07 Player: Pogmind Result: Core destroyed Performance ------------- Evolutions (7) 3500 Regions Visited (26) 5200 Robots Destroyed (396) 1980 Value Destroyed (24392) 24392 Prototype IDs (63) 1260 Alien Tech Used (6) 1200 Bonus (17595) 17595 TOTAL SCORE: 55127 Bonus ------- High Alert Combat Kills 4330 Follower Combat Kills 5446 Entered Garrisons 1600 Used RIF Installer 4000 Aligned with FarCom 300 Built Enhanced Grunts 300 A7 Reached Mainframe 300 Met R17 at Cetus 500 Met R17 at Research 2000 Friendly Fire -1181 Cogmind --------- Core Integrity 0/1300 Matter 133/300 Energy 49/600 System Corruption 7% Temperature Cool (39) Movement Walking (190) Ox1 Location -3/Quarantine Parts ------- > --- POWER (1) -------- (None) > --- PROPULSION (6) --- Flexi-carbon Leg Myomer Leg > --- UTILITY (9) ------ High-capacity Storage Unit Advanced Energy Well Advanced Actuator Array Advanced Shield Generator Relay Coupler [NC] (2) Relay Coupler [Swarmer] (2) > --- WEAPON (5) ------- Enhanced Force Lance > --- INVENTORY (20) --- Combat Antigrav System Huge Storage Unit Advanced Launcher Guidance Computer Advanced Weapon Cycler Relay Coupler [NC] (35) Relay Coupler [Duelist] (35) Relay Coupler [Sentry] (32) Relay Coupler [Heavy] (20) Relay Coupler [Heavy] (20) Relay Coupler [Heavy] (22) Fusion Bomb Launcher Improved Remote Datajack Peak State ------------ > --- POWER ------------ Light Antimatter Reactor > --- PROPULSION ------- Flexi-carbon Leg Myomer Leg Myomer Leg Biometal Leg Gyrokinetic Inverter Combat Antigrav System > --- UTILITY ---------- High-capacity Storage Unit Advanced Melee Analysis Suite Advanced Weapon Cycler Advanced Actuator Array Phase Armor Relay Coupler [NC] Relay Coupler [Swarmer] Relay Coupler [Hunter] > --- WEAPON ----------- Sigix Broadsword Kinetic Spear Enhanced Force Lance > --- INVENTORY -------- Combat Antigrav System Huge Storage Unit Advanced Energy Well Advanced Launcher Guidance Computer Advanced Actuator Array Advanced Shield Generator Relay Coupler [NC] Relay Coupler [Duelist] Relay Coupler [Sentry] Relay Coupler [Heavy] Relay Coupler [Heavy] Relay Coupler [Heavy] Transdimensional Reconstructor Fusion Bomb Launcher Improved Remote Datajack Core Stripper [Rating: 161] Favorites ----------- Power Improved Deuterium Engine Engine Improved Deuterium Engine Power Core Enhanced Nuclear Core Reactor Light Antimatter Reactor Propulsion Armored Treads Treads Armored Treads Leg Myomer Leg Wheel Wheel Hover Unit Combat Antigrav System Flight Unit Improved VTOL Module Utility Huge Storage Unit Device Advanced Actuator Array Storage Huge Storage Unit Processor Advanced Melee Analysis Suite Hackware Relay Coupler [Swarmer] Protection Centrium Medium Armor Plating Artifact Phase Armor Weapon Remote Datajack Energy Gun Advanced Beam Rifle Energy Cannon Cooled Particle Cannon Ballistic Gun Assault Rifle Ballistic Cannon Magnetic Acceleration Cannon Launcher Rocket Launcher Special Weapon Remote Datajack Impact Weapon Heavy Mace Slashing Weapon Chainsword Piercing Weapon Enhanced Force Lance Special Melee Weapon Improved Datajack Build | -11 -10 -10 -10 -9 -8 -8 -7 -7 -7 -7 -6 -6 -6 -6 -6 -6 -6 -6 -5 -5 -4 -4 -4 -4 -3 -3 ------- Run | Scr Mat Min Exi Min Mat Gar Fac Gar Fac Gar Fac Gar Fac Ext Cet Arc Hub Gar Fac Gar Fac Gar Fac Gar Res Qua Slots Evolved 14 | . . . . . 4 . 2 . . . 2 . . . . . . . 2 . 2 . . . 2 . Power . | . . . . . . . . . . . . . . . . . . . . . . . . . . . Propulsion 4 | . . . . . 2 . 1 . . . . . . . . . . . . . . . . . 1 . Utility 7 | . . . . . 2 . 1 . . . 2 . . . . . . . 1 . 1 . . . . . Weapon 3 | . . . . . . . . . . . . . . . . . . . 1 . 1 . . . 1 . Parts Attached 676 | 7 9 11 . 5 84 12 29 24 28 37 8 23 . 29 12 . . 21 1 24 35 71 60 40 80 26 Power 32 | 1 1 . . . 5 1 . . 3 1 . 1 . . 1 . . . . . 1 3 6 3 3 2 Engine 11 | 1 1 . . . 4 1 . . 2 1 . 1 . . . . . . . . . . . . . . Core 10 | . . . . . 1 . . . 1 . . . . . 1 . . . . . . 1 4 2 . . Reactor 11 | . . . . . . . . . . . . . . . . . . . . . 1 2 2 1 3 2 Propulsion 111 | 2 1 2 . 1 18 1 4 1 2 3 4 . . 5 2 . . . . 2 . 12 19 11 15 6 Treads 48 | 2 . 1 . . 12 1 4 1 2 3 4 . . 5 2 . . . . 2 . 7 . . 2 . Leg 48 | . . . . . . . . . . . . . . . . . . . . . . 5 19 11 8 5 Wheel 8 | . 1 1 . 1 5 . . . . . . . . . . . . . . . . . . . . . Hover 6 | . . . . . . . . . . . . . . . . . . . . . . . . . 5 1 Flight 1 | . . . . . 1 . . . . . . . . . . . . . . . . . . . . . Utility 239 | 2 3 3 . . 20 5 7 11 7 19 3 13 . 3 5 . . 7 . 8 19 24 26 16 29 9 Device 74 | 1 . . . . 5 1 3 2 1 4 . 1 . 2 . . . . . 1 5 9 13 7 14 5 Storage 17 | 1 2 . . . . 2 1 2 . 3 . . . 1 . . . . . . . 2 . . 2 1 Processor 7 | . . . . . . . . . . . . . . . . . . . . 2 1 . 2 1 1 . Hackware 65 | . . . . . . 1 3 6 6 6 2 8 . . . . . 6 . 3 7 4 4 4 4 1 Protection 74 | . 1 3 . . 15 1 . 1 . 6 1 4 . . 5 . . 1 . 2 6 9 7 4 8 . Artifact 2 | . . . . . . . . . . . . . . . . . . . . . . . . . . 2 Weapon 294 | 2 4 6 . 4 41 5 18 12 16 14 1 9 . 21 4 . . 14 1 14 15 32 9 10 33 9 Energy Gun 22 | 1 1 . . . 6 3 7 3 . . . . . . 1 . . . . . . . . . . . Energy Cannon 26 | . . 2 . 1 3 . . . 6 7 . 4 . . . . . . . . 2 1 . . . . Ballistic Gun 51 | 1 2 2 . 1 20 . . 1 . . . . . 1 1 . . . . 1 . 17 . . 3 1 Ballistic Cannon 26 | . . . . . 1 . . . . . . . . 9 . . . 7 1 2 6 . . . . . Launcher 18 | . 1 2 . 2 4 1 . . . 1 . . . . . . . . . 1 . 2 1 . 2 1 Special Weapon 70 | . . . . . . . 5 4 6 4 1 2 . 7 2 . . 4 . 4 7 4 3 4 9 4 Impact Weapon 3 | . . . . . . . . . . . . . . . . . . . . . . . . 1 1 1 Slashing Weapon 55 | . . . . . 6 . 3 4 4 2 . 3 . 4 . . . 3 . 4 . 6 1 5 8 2 Piercing Weapon 19 | . . . . . 1 . . . . . . . . . . . . . . 2 . 2 4 . 10 . Special Melee Weapon 4 | . . . . . . 1 3 . . . . . . . . . . . . . . . . . . . Unidentified Prototypes 31 | . . . . . 7 . . . 1 . . . . . 4 . . . . . 1 1 3 1 6 7 Parts Lost 127 | . 2 6 . 1 25 . . . . 2 . . . . . . . . . 3 5 14 14 15 22 18 Power 14 | . 1 . . . 4 . . . . . . . . . . . . . . . . 2 2 1 1 3 Propulsion 39 | . 1 1 . 1 6 . . . . 1 . . . . . . . . . . . 4 5 6 8 6 Utility 46 | . . 3 . . 8 . . . . 1 . . . . . . . . . 2 3 4 6 5 9 5 Weapon 28 | . . 2 . . 7 . . . . . . . . . . . . . . 1 2 4 1 3 4 4 Highest Loss Streak 12 | . 2 5 . 1 7 . . . . 1 . . . . . . . . . 2 2 9 4 8 10 12 To Critical Strikes . | . . . . . . . . . . . . . . . . . . . . . . . . . . . Average Slot Usage (%) 90 | . 99 99 100 99 92 90 90 91 97 96 84 88 93 92 90 86 86 80 81 76 86 91 98 94 91 75 Engine 4 | . 13 14 14 14 7 9 7 7 7 7 6 6 6 6 1 . . . . . . . . . . . Core 1 | . . . . . 1 . . . . . . . . . 4 6 6 6 5 5 . 2 2 . . . Treads 23 | . 20 4 14 14 27 36 38 38 38 37 33 33 33 33 25 20 20 20 17 17 15 18 . . . . Leg 3 | . . . . . . . . . . . . . . . . . . . . . . 2 25 25 21 7 Wheel 2 | . 7 23 14 13 7 . . . . . . . . . . . . . . . . . . . . . Device 4 | . 7 . . . 7 8 7 6 2 2 . . . . 4 . . . . . 3 12 13 14 9 6 Storage 7 | . 14 14 14 14 9 9 7 7 7 6 6 6 6 10 6 6 6 6 5 5 5 5 5 5 4 4 Processor 1 | . . . . . . . . . . . . . . . . . . . . 1 5 5 8 10 7 3 Hackware 11 | . . . . . . . 5 7 23 18 12 13 26 21 20 20 20 14 23 16 22 11 10 5 11 13 Protection 10 | . 6 13 14 14 13 9 7 7 1 5 11 14 6 6 12 20 20 19 11 15 8 9 5 5 4 1 Energy Gun 1 | . 13 1 . . 1 8 10 8 1 . . . . . . . . . . . . . . . . . Energy Cannon 2 | . . 10 14 2 2 . . . 3 9 6 1 . . . . . . . . 4 . . . . . Ballistic Gun 2 | . 13 5 14 . 10 . . 4 1 . . . . . . . . . . . . 3 . . . . Ballistic Cannon 1 | . . . . . 1 9 1 . . . . . . 5 . . . 6 4 . 3 . . . . . Launcher 1 | . . 10 . 25 . . . . . . . . . . . . . . . . . . . . . . Special Weapon 2 | . . . . . . . 1 1 3 3 5 5 6 3 6 6 6 1 5 4 4 4 2 2 3 . Slashing Weapon 3 | . . . . . . . . . 4 1 . 5 6 2 6 6 6 4 5 5 . 3 8 12 3 3 Piercing Weapon 1 | . . . . . . . . . . . . . . . . . . . . . 6 6 9 2 10 9 Naked Turns . | . . . . . . . . . . . . . . . . . . . . . . . . . . . Heaviest Build 196 | 15 96 100 97 100 121 116 196 117 116 164 164 140 116 166 118 116 116 125 117 128 160 175 152 152 157 120 Greatest Support 190 | 40 40 26 10 10 84 84 110 110 116 116 140 140 140 140 190 190 190 190 190 190 190 190 120 125 138 98 Greatest Overweight (x) 38 | 1 9 9 9 9 9 1 1 1 1 1 1 . . 1 . 38 . . . . . 5 1 4 4 2 Average Overweight (x) 1 | . 5 4 9 9 2 . 1 . . . . . . . . 4 . . . . . . 1 . . . Largest Inventory Capacity 25 | 8 25 25 25 25 25 25 25 25 25 25 25 25 25 25 25 25 25 25 25 25 25 25 25 25 25 20 Average Capacity 23 | 6 19 25 25 25 25 21 25 22 25 20 25 25 25 25 25 25 25 25 25 25 25 22 25 25 24 20 Most Carried 25 | 5 13 16 25 25 25 25 25 25 25 25 25 25 25 25 25 25 25 25 25 25 25 25 25 25 25 20 Average Carried 21 | 3 10 11 19 24 24 21 24 20 24 19 24 22 25 24 24 25 25 19 24 23 24 21 24 22 24 18 Final Capacity 25 | 8 25 25 25 25 25 25 25 25 25 25 25 25 25 25 25 25 25 25 25 25 25 25 25 25 25 20 Final Carried 25 | 4 12 16 25 25 25 25 25 25 25 25 25 25 25 25 25 25 25 25 25 25 25 25 25 25 25 12 Class Distribution -------------------- 37% | Botlord-Mutant 27% | Bothacker-Mutant 14% | Mutant 11% | Commander-Mutant 7% | Scavenger-Mutant Dominant Class ---------------- Mutant | -10/Materials Mutant | -10/Mines Mutant | -10/Exiles Mutant | -9/Mines Scavenger-Mutant | -8/Materials Bothacker-Mutant | -8/Garrison Bothacker-Mutant | -7/Factory Bothacker-Mutant | -7/Garrison Bothacker-Mutant | -7/Factory Bothacker-Mutant | -7/Garrison Bothacker-Mutant | -6/Factory Botlord-Mutant | -6/Garrison Botlord-Mutant | -6/Factory Commander-Mutant | -6/Extension Commander-Mutant | -6/Cetus Commander-Mutant | -6/Archives Commander-Mutant | -6/Hub_04(d) Botlord-Mutant | -6/Garrison Botlord-Mutant | -5/Factory Botlord-Mutant | -5/Garrison Botlord-Mutant | -4/Factory Botlord-Mutant | -4/Garrison Botlord-Mutant | -4/Factory Botlord-Mutant | -4/Garrison Botlord-Mutant | -3/Research Botlord-Gladiator | -3/Quarantine Resources | -11 -10 -10 -10 -9 -8 -8 -7 -7 -7 -7 -6 -6 -6 -6 -6 -6 -6 -6 -5 -5 -4 -4 -4 -4 -3 -3 ----------- Run | Scr Mat Min Exi Min Mat Gar Fac Gar Fac Gar Fac Gar Fac Ext Cet Arc Hub Gar Fac Gar Fac Gar Fac Gar Res Qua Matter Collected 13754 | 284 210 382 . 87 1948 420 122 628 542 693 14 475 . 689 170 . . 456 31 492 910 1781 940 746 1491 243 Remotely . | . . . . . . . . . . . . . . . . . . . . . . . . . . . Salvage Created 18626 | 94 540 236 . 35 2213 605 227 563 795 714 14 706 . 614 . . . 427 . 809 1898 1798 2871 1097 1703 667 Parts 864 | 5 35 12 . 3 128 26 13 17 42 36 3 24 . 22 . . . 16 . 37 90 89 132 41 60 33 Haulers Intercepted 7 | . . . . . 2 . . . . . . . . . . . . . . . 2 . 3 . . . Recyclers Shooed 9 | . . . . . . . 2 . . . . . . . . . . . . . 3 . 3 . . 1 Parts Field Recycled . | . . . . . . . . . . . . . . . . . . . . . . . . . . . Retrieved Matter . | . . . . . . . . . . . . . . . . . . . . . . . . . . . Parts Self-Destructed . | . . . . . . . . . . . . . . . . . . . . . . . . . . . Prevented . | . . . . . . . . . . . . . . . . . . . . . . . . . . . Kills | -11 -10 -10 -10 -9 -8 -8 -7 -7 -7 -7 -6 -6 -6 -6 -6 -6 -6 -6 -5 -5 -4 -4 -4 -4 -3 -3 ------- Run | Scr Mat Min Exi Min Mat Gar Fac Gar Fac Gar Fac Gar Fac Ext Cet Arc Hub Gar Fac Gar Fac Gar Fac Gar Res Qua Combat Hostiles Destroyed 344 | . 12 19 . 3 43 19 3 10 14 22 . 11 . 11 . . . 11 . 17 25 38 30 17 25 14 Melee 136 | . . . . . . . . 4 9 7 . 7 . 8 . . . 4 . 11 7 12 29 17 13 8 Guns 62 | . 8 1 . . 26 6 3 6 . . . . . . . . . . . . . 6 . . 6 . Cannons 66 | . . 2 . . 7 9 . . 4 4 . 4 . 3 . . . 7 . 1 17 8 . . . . AOE 78 | . 4 16 . 3 10 4 . . . 11 . . . . . . . . . 5 1 12 1 . 5 6 Classes Destroyed 20 | 2 4 3 . . 6 1 1 . 1 . . . . . . . . . . . . . . . 2 . Worker 8 | . . 1 . . 2 . . . . . 2 . . . . . . . . . 1 . 1 . 1 . Builder 11 | . 1 . . . . . 1 . . . . . . . . . . . . . 5 . 4 . . . Tunneler 4 | 2 . . . . 1 . 1 . . . . . . . . . . . . . . . . . . . Hauler 7 | . . . . . 2 . . . . . . . . . . . . . . . 2 . 3 . . . Recycler 15 | 1 1 1 . . 3 . 1 . 1 . . . . . . . . . . . 2 . 4 . . 1 Watcher 19 | . 3 . . . 5 . . . 3 . . . . 1 . . . . . . . 1 . 1 4 1 Swarmer 75 | . 3 3 . . 11 6 . 2 1 4 . . . . . . . 4 . 6 1 17 5 4 2 6 Grunt 133 | . 9 . . 3 16 8 . 6 7 15 . 9 . 6 . . . 3 . 6 11 7 14 3 9 1 Brawler 7 | . . . . . . 2 . . . . . . . . . . . . . 1 1 . . 1 2 . Duelist 5 | . . . . . . . . . 1 1 . . . . . . . . . 1 1 . . 1 . . Protector 2 | . . . . . 1 . . . . . . . . . . . . . . . . . 1 . . . Sentry 41 | . . . . . 9 2 . . 3 1 . 2 . 4 . . . 3 . 2 2 10 1 2 . . Demolisher 4 | . . 1 . . . . . . . . . . . . . . . . . . . . . . 3 . Specialist 4 | . . . . . 2 . . . . . . . . . . . . . . . 2 . . . . . Hunter 23 | . . . . . 3 1 1 2 . . . . . . . . . 1 . 1 1 4 2 4 . 3 Programmer 27 | . . . . . . . 2 . 2 1 . . . 1 . . . . . . 6 . 9 2 1 3 Heavy 1 | . . . . . 1 . . . . . . . . . . . . . . . . . . . . . Quarantine Guard 1 | . . . . . . . . . . . . . . . . . . . . . . . . . . 1 Striker 8 | . . . . . . . . . . . . . . . . . . . . . . . . . 8 . Executioner 1 | . . . . . . . . . . . . . . . . . . . . . . . . . 1 . Assembled 15 | . . 15 . . . . . . . . . . . . . . . . . . . . . . . . Best Kill Streak 14 | 2 4 4 . 3 5 4 2 4 2 11 2 2 . 3 . . . 5 . 5 14 13 5 5 8 7 Combat Bots Only 13 | . 3 4 . 3 5 4 1 4 2 11 . 2 . 3 . . . 5 . 5 10 13 5 5 8 7 Max Kills in Single Turn 4 | 1 3 3 . 1 3 2 2 1 1 4 1 1 . 1 . . . 1 . 3 2 3 2 1 3 3 Gunslinging . | . . . . . . . . . . . . . . . . . . . . . . . . . . . Exploded 4 | . 3 3 . 1 3 2 . . . 4 . . . . . . . . . 3 1 3 1 . 3 3 Melee 2 | . . . . . . . . 1 1 1 . 1 . 1 . . . 1 . 1 1 1 2 1 1 1 Uniques/NPCs Destroyed . | . . . . . . . . . . . . . . . . . . . . . . . . . . . Combat | -11 -10 -10 -10 -9 -8 -8 -7 -7 -7 -7 -6 -6 -6 -6 -6 -6 -6 -6 -5 -5 -4 -4 -4 -4 -3 -3 -------- Run | Scr Mat Min Exi Min Mat Gar Fac Gar Fac Gar Fac Gar Fac Ext Cet Arc Hub Gar Fac Gar Fac Gar Fac Gar Res Qua Damage Taken 34489 | . 563 853 . 30 3851 750 388 508 671 862 116 1264 . 540 45 . 33 1177 64 1196 2873 3481 3926 2301 5236 3761 Core 3689 | . 101 134 . . 307 114 20 55 76 49 . 70 . 64 . . . 82 45 159 169 207 450 238 963 386 Absorbed by Shields 607 | . . . . . . 27 . . . . . . . 65 16 . . . . . . 442 . . . 57 Reduced by Siege Mode 467 | . . . . . . . . . . . . . . . . . . 43 . 31 202 191 . . . . Regen/Repaired (Parts) 4499 | . . . . . . . . . . . 207 581 . 367 . . . 4 4 532 898 . 1036 . 228 642 Core Remaining (%) 51 | 100 . . . 6 . 23 . . . 71 . . . . . . . 74 . 79 . . . 7 . . Volleys Fired 1196 | 7 43 37 . 5 205 69 32 91 52 115 11 56 . 73 1 . . 30 4 29 101 101 19 38 64 13 Largest 4 | 2 2 2 . 2 2 2 2 2 2 2 1 2 . 2 1 . . 2 1 2 3 4 1 1 1 1 Hottest 216 | 70 70 93 . 66 105 105 116 116 60 60 30 60 . 106 5 . . 106 53 106 216 216 39 7 60 52 Shots Fired 1715 | 14 84 58 . 9 392 116 48 116 64 129 11 70 . 82 1 . . 43 4 32 158 150 19 38 64 13 Gun 742 | 14 83 8 . . 332 64 34 96 . . . . . . . . . . . . . 81 . . 30 . Cannon 467 | . . 26 . 1 53 47 . . 27 88 4 34 . 19 . . . 31 1 6 97 33 . . . . Launcher 75 | . 1 24 . 8 7 5 . . . 8 . . . . . . . . . 2 . 9 1 . 4 6 Special 431 | . . . . . . . 14 20 37 33 7 36 . 63 1 . . 12 3 24 61 27 18 38 30 7 Kinetic 618 | 7 42 7 . . 283 47 . 5 . . . . . 19 . . . 31 1 6 56 84 . . 30 . Thermal 591 | 7 41 27 . 1 102 64 34 91 27 88 4 34 . . . . . . . . 41 30 . . . . Explosive 75 | . 1 24 . 8 7 5 . . . 8 . . . . . . . . . 2 . 9 1 . 4 6 Electromagnetic . | . . . . . . . . . . . . . . . . . . . . . . . . . . . Robot Hit Streak 20 | 7 8 9 . 4 12 13 9 17 13 13 2 14 . 20 10 . . 12 6 7 11 18 19 12 10 10 Robot Miss Streak 6 | 1 2 5 . . 4 3 2 4 3 3 3 5 . 6 . . . 3 . 1 3 4 2 2 4 3 Penetration Max 1 | . . . . . . . . . . . . . . . . . . . . . . 1 . . . . Secondary Targets 5 | . . . . . 4 . . . . . . . . . . . . . . . . 1 . . . . Max Gunslinging Chain 1 | . . . . . 1 . . . . . . . . . . . . . . . . 1 . . . . Shots Hit Robots 1557 | 10 55 30 . 3 275 60 43 60 67 51 3 58 . 87 1 . . 42 3 57 127 153 110 75 152 35 Core Hits 586 | 4 27 34 . 4 108 30 7 14 14 30 1 14 . 15 . . . 14 . 21 50 63 37 23 54 22 Critical Kills 6 | . . . . . 1 . . . . . . . . . . . . . . . . 5 . . . . Critical Parts Destroyed 14 | . . . . . 2 . . . . . . . . . . . . . . . . 12 . . . . Critical Strikes 106 | 1 1 . . . 4 7 1 6 1 1 . 2 . 5 . . . 2 . 7 10 30 18 1 7 2 Burn 11 | 1 1 . . . 1 5 1 2 . . . . . . . . . . . . . . . . . . Destroy 26 | . . . . . 3 . . . . . . . . . . . . . . . . 23 . . . . Blast 9 | . . . . . . 2 . . . . . . . . . . . 1 . . 6 . . . . . Sever 39 | . . . . . . . . 4 1 1 . 2 . 5 . . . 1 . 7 . 5 9 1 2 1 Impale 21 | . . . . . . . . . . . . . . . . . . . . . 4 2 9 . 5 1 Melee Attacks 782 | . . . . . 12 4 14 25 31 19 . 55 1 28 . . 1 41 1 63 22 57 136 70 151 51 Kinetic 1 | . . . . . . . . . . . . . . . . . . . . . . . . . . 1 Impact 15 | . . . . . . . . . . . . . . . . . . . . . . . . 2 13 . Slashing 515 | . . . . . 9 . 7 25 31 19 . 55 1 28 . . 1 41 1 63 . 40 75 47 44 28 Piercing 240 | . . . . . 3 . . . . . . . . . . . . . . . 22 17 61 21 94 22 Sneak Attacks 189 | . . . . . 2 . 8 15 22 11 . 16 . 23 . . . 6 . 12 9 26 25 2 6 6 Combat Hostiles 142 | . . . . . . . . 12 20 11 . 16 . 21 . . . 5 . 12 5 26 3 2 4 5 Follow-up Attacks 131 | . . . . . . . . . . . . . . . . . . . . 5 2 8 33 15 60 8 Damage Inflicted 54619 | 127 860 1464 . 447 5052 1515 808 1850 2124 2444 26 1648 . 2060 . . . 1288 . 2630 4509 5779 7730 2565 7165 2528 Guns 7898 | 124 672 46 . . 3546 662 480 384 . . . . . . . . . . . . . 586 . . 1398 . Cannons 7770 | . . 281 . 18 815 667 . . 442 250 . 381 . 345 . . . 642 . 155 2788 986 . . . . Explosions 7336 | . 173 1137 . 429 516 186 . . . 1367 . . . . . . . . . 422 170 1022 66 . 938 910 Melee 31441 | . . . . . 170 . 328 1466 1676 827 . 1267 . 1663 . . . 646 . 2053 1484 3185 7664 2565 4829 1618 Ramming 174 | 3 15 . . . 5 . . . 6 . 26 . . 52 . . . . . . 67 . . . . . Kinetic 8573 | 63 291 34 . . 2658 667 . 17 . . . . . 345 . . . 642 . 155 1579 671 . . 1398 53 Thermal 7318 | 61 381 293 . 18 1703 662 480 367 442 250 . 381 . . . . . . . . 1379 901 . . . . Explosive 7166 | . 173 1137 . 429 516 186 . . . 1367 . . . . . . . . . 422 . 1022 66 . 938 910 Electromagnetic . | . . . . . . . . . . . . . . . . . . . . . . . . . . . Impact 261 | . . . . . . . . . . . . . . . . . . . . . . . . . 261 . Slashing 20653 | . . . . . 170 . 328 1466 1676 827 . 1267 . 1663 . . . 646 . 2053 . 2393 4340 1708 1323 793 Piercing 10474 | . . . . . . . . . . . . . . . . . . . . . 1484 792 3324 857 3245 772 Highest Corruption 19 | . . . . . . . 1 . 8 8 . . . . . . . . . 5 13 13 19 19 2 7 Average Corruption 8 | . . . . . . . 1 . 6 2 . . . . . . . . . 4 5 13 16 13 2 5 Corruption Purged 19 | . . . . . . . 1 . . 9 . . . . . . . . . . . . . 7 . 2 Corruption Blocked . | . . . . . . . . . . . . . . . . . . . . . . . . . . . Effects 498 | . . . . . . . 13 . 36 14 . . . . . . . . . 52 34 130 85 88 21 25 Message Errors 115 | . . . . . . . 2 . 8 1 . . . . . . . . . 13 6 32 21 21 5 6 Matter Fused 130 | . . . . . . . 4 . 11 5 . . . . . . . . . 11 11 32 23 21 7 5 Heat Flow Errors 64 | . . . . . . . 3 . 6 1 . . . . . . . . . 11 2 16 6 13 1 5 Energy Discharges 76 | . . . . . . . 3 . 4 3 . . . . . . . . . 11 5 13 15 15 5 2 Parts Rejected 3 | . . . . . . . . . . . . . . . . . . . . . . . 1 . 1 1 Data Loss (minor) 63 | . . . . . . . 1 . 6 3 . . . . . . . . . 4 3 17 8 15 1 5 Data Loss (major) 19 | . . . . . . . . . 1 . . . . . . . . . . 1 1 10 5 . . 1 Misfires 4 | . . . . . . . . . . . . . . . . . . . . . 4 . . . . . Alerts 12 | . . . . . . . . . . 1 . . . . . . . . . 1 . 5 1 3 1 . Misdirections 6 | . . . . . . . . . . . . . . . . . . . . . . 1 5 . . . Weapon Failures 6 | . . . . . . . . . . . . . . . . . . . . . 2 4 . . . . Overload Shots 4 | . . . . . 4 . . . . . . . . . . . . . . . . . . . . . Effects 1 | . . . . . 1 . . . . . . . . . . . . . . . . . . . . . Heat Surge 1 | . . . . . 1 . . . . . . . . . . . . . . . . . . . . . Overflow Damage 3598 | . . 44 . 28 41 9 69 233 196 69 . 42 . 65 . . . 24 . 111 183 577 1457 139 255 56 Projectiles 166 | . . 13 . . 22 9 . . . . . . . . . . . . . . 104 18 . . . . Explosions 180 | . . 31 . 28 4 . . . . 21 . . . . . . . . . 14 4 35 . . 1 42 Melee 3252 | . . . . . 15 . 69 233 196 48 . 42 . 65 . . . 24 . 97 75 524 1457 139 254 14 Knockbacks 35 | . . . . . 1 7 . . . . . . . 6 . . . . . 3 15 2 . . 1 . Impact 5 | . . . . . . . . . . . . . . 1 . . . . . . 3 . . . 1 . Kinetic 28 | . . . . . 1 7 . . . . . . . 4 . . . . . 3 11 2 . . . . Secondary 2 | . . . . . . . . . . . . . . 1 . . . . . . 1 . . . . . Self-Inflicted Damage 350 | . . 91 . 18 65 29 . . . . . . . . . . . . . 11 . 61 . . . 75 Shots 11 | . . 2 . 1 2 1 . . . . . . . . . . . . . 1 . 1 . . . 3 Rammed 23 | 2 3 . . . 3 . . . . . 3 . . 6 . . . . . . 6 . . . . . Targets Rammed 25 | 2 3 . . . 3 . . . 1 . 4 . . 6 . . . . . . 6 . . . . . Kicked . | . . . . . . . . . . . . . . . . . . . . . . . . . . . Crushed 2 | . . . . . . . . . 1 . 1 . . . . . . . . . . . . . . . Highest Temperature 453 | 54 195 104 . 66 203 102 245 18 208 123 40 96 . 180 . . . 330 . 346 288 261 203 275 453 265 Average Temperature 73 | 25 58 32 . 32 62 33 86 9 93 26 20 34 . 56 . . . 97 . 110 94 82 72 101 93 101 Received Heat Transfer 5774 | . 279 . . 6 1566 288 24 138 117 369 . 423 . 152 4 . 12 279 . 201 456 332 717 196 215 . Effects 1 | . . . . . . . . . . . . . . . . . . . . . . . . . 1 . Shutdowns 1 | . . . . . . . . . . . . . . . . . . . . . . . . . 1 . Siege Activations 24 | . . . . . . . . . . . . . . . . . . 2 . 4 8 10 . . . . Total Turns 370 | . . . . . . . . . . . . . . . . . . 21 . 48 165 136 . . . . Longest Duration 82 | . . . . . . . . . . . . . . . . . . 17 . 34 82 29 . . . . Robots Corrupted . | . . . . . . . . . . . . . . . . . . . . . . . . . . . Combat Hostiles . | . . . . . . . . . . . . . . . . . . . . . . . . . . . Parts Fried 7 | . . . . . . . . . 2 . . . . . . . . . . . 4 . . . 1 . Impact Corruptions 4 | . . . . . . . . . . . . . . . . . . . . . 2 . . . 2 . Robots Melted . | . . . . . . . . . . . . . . . . . . . . . . . . . . . Combat Hostiles . | . . . . . . . . . . . . . . . . . . . . . . . . . . . Parts Melted 22 | 1 4 . . . 5 1 3 2 2 1 . 1 . . . . . . . . . . . . . 2 Heat Transferred 10191 | 259 1184 629 . 37 3359 1478 888 851 555 333 . 518 . . . . . . . . 100 . . . . . Parts Sabotaged 10 | . . . . . . . . . . . . . . . . . . . . . . . 3 7 . . Parts Stolen . | . . . . . . . . . . . . . . . . . . . . . . . . . . . Parts Stripped . | . . . . . . . . . . . . . . . . . . . . . . . . . . . Power Chain Reactions 1 | . . . . . . . . . . . . . . . . . . . . . 1 . . . . . Missiles Intercepted . | . . . . . . . . . . . . . . . . . . . . . . . . . . . Alert | -11 -10 -10 -10 -9 -8 -8 -7 -7 -7 -7 -6 -6 -6 -6 -6 -6 -6 -6 -5 -5 -4 -4 -4 -4 -3 -3 ------- Run | Scr Mat Min Exi Min Mat Gar Fac Gar Fac Gar Fac Gar Fac Ext Cet Arc Hub Gar Fac Gar Fac Gar Fac Gar Res Qua Peak Influence 1538 | 15 248 213 . 144 610 834 499 933 577 1055 739 700 448 398 446 324 99 635 485 1538 1342 1472 1083 728 423 537 Initial 807 | . 9 31 . . . 175 437 . 489 166 553 185 367 219 143 178 . 69 333 339 807 559 772 459 409 121 Average 549 | 6 109 109 . 4 247 599 213 694 363 798 502 585 395 252 327 165 33 538 371 1129 1010 1217 813 611 200 328 Maximum Alert Level 4 | . 1 1 . . 2 3 2 3 2 3 3 3 2 1 2 1 . 2 2 4 4 4 3 3 2 2 Low Security (%) 21 | 100 82 79 . 100 49 3 51 15 4 10 . 2 . 16 7 62 100 6 . . . . . . 51 7 Level 1 18 | . 17 20 . . 23 13 24 3 50 5 8 18 63 83 64 37 . 9 66 5 . . . . 34 71 Level 2 26 | . . . . . 27 36 24 15 45 21 88 22 36 . 27 . . 83 33 19 . 7 25 71 14 20 Level 3 25 | . . . . . . 47 . 66 . 63 3 57 . . . . . . . 18 78 17 74 28 . . Level 4 8 | . . . . . . . . . . . . . . . . . . . . 55 21 74 . . . . Level 5 . | . . . . . . . . . . . . . . . . . . . . . . . . . . . High Security . | . . . . . . . . . . . . . . . . . . . . . . . . . . . Max Security . | . . . . . . . . . . . . . . . . . . . . . . . . . . . Squads Dispatched 49 | . 4 . . . 7 . 2 . 4 . . . 1 1 . . 1 . . . 14 . 8 . 5 2 Investigation 7 | . 2 . . . 1 . . . 1 . . . 1 . . . . . . . 1 . 1 . . . Extermination 11 | . . . . . . . 2 . 2 . . . . . . . . . . . 2 . 4 . . 1 Reinforcement 20 | . 2 . . . 5 . . . 1 . . . . 1 . . 1 . . . 3 . 1 . 5 1 Assault 8 | . . . . . 1 . . . . . . . . . . . . . . . 5 . 2 . . . Garrison 3 | . . . . . . . . . . . . . . . . . . . . . 3 . . . . . Intercept . | . . . . . . . . . . . . . . . . . . . . . . . . . . . Searches Triggered . | . . . . . . . . . . . . . . . . . . . . . . . . . . . Construction Impeded 1 | . . . . . 1 . . . . . . . . . . . . . . . . . . . . . Haulers Reinforced 5 | . . . . . . . . . 1 . . . . . . . . . . . 1 . 1 . 2 . Active Scanning Responses . | . . . . . . . . . . . . . . . . . . . . . . . . . . . Cargo Convoy Interrupts . | . . . . . . . . . . . . . . . . . . . . . . . . . . . Stealth | -11 -10 -10 -10 -9 -8 -8 -7 -7 -7 -7 -6 -6 -6 -6 -6 -6 -6 -6 -5 -5 -4 -4 -4 -4 -3 -3 --------- Run | Scr Mat Min Exi Min Mat Gar Fac Gar Fac Gar Fac Gar Fac Ext Cet Arc Hub Gar Fac Gar Fac Gar Fac Gar Res Qua Distress Signals 25 | . 2 . . . 5 . 1 . 4 . . . . 1 1 . . . . . . . . 1 10 . Communications Jammed 203 | . . . . . . . . . . . . . . . . . . . . . 105 . 84 . 14 . Distress Signals 203 | . . . . . . . . . . . . . . . . . . . . . 105 . 84 . 14 . Times Spotted 703 | . 17 20 . 3 62 17 12 38 29 40 5 34 2 28 14 2 1 30 6 32 84 47 53 31 73 23 Peak Tracking Total 12 | . 5 4 . 3 6 4 4 8 5 7 3 6 2 4 5 1 1 6 1 8 11 12 7 7 7 6 Tactical Retreats 37 | . . 1 . . 4 . . 5 1 1 . 2 . . . . . . . . 4 12 . 1 3 3 Traps | -11 -10 -10 -10 -9 -8 -8 -7 -7 -7 -7 -6 -6 -6 -6 -6 -6 -6 -6 -5 -5 -4 -4 -4 -4 -3 -3 ------- Run | Scr Mat Min Exi Min Mat Gar Fac Gar Fac Gar Fac Gar Fac Ext Cet Arc Hub Gar Fac Gar Fac Gar Fac Gar Res Qua Traps Triggered 49 | . 1 . . . 1 5 . 6 . 4 1 1 . . . . . . . 4 4 9 . 10 2 1 Indirectly . | . . . . . . . . . . . . . . . . . . . . . . . . . . . Trap Hack Attempts . | . . . . . . . . . . . . . . . . . . . . . . . . . . . Triggered . | . . . . . . . . . . . . . . . . . . . . . . . . . . . Disarmed . | . . . . . . . . . . . . . . . . . . . . . . . . . . . Reprogrammed 4 | . . . . . . . . . . . . . . 4 . . . . . . . . . . . . Reused 2 | . . . . . . . . . . . . . . 2 . . . . . . . . . . . . Traps Extracted . | . . . . . . . . . . . . . . . . . . . . . . . . . . . Installed . | . . . . . . . . . . . . . . . . . . . . . . . . . . . Triggered 3 | . . . . . . . . . . . . . . 3 . . . . . . . . . . . . Machines | -11 -10 -10 -10 -9 -8 -8 -7 -7 -7 -7 -6 -6 -6 -6 -6 -6 -6 -6 -5 -5 -4 -4 -4 -4 -3 -3 ---------- Run | Scr Mat Min Exi Min Mat Gar Fac Gar Fac Gar Fac Gar Fac Ext Cet Arc Hub Gar Fac Gar Fac Gar Fac Gar Res Qua Machines Disabled 68 | . 1 1 . 1 2 4 1 4 2 6 . 5 . 2 1 2 1 3 1 4 8 6 . 3 1 9 Max in Single Turn 2 | . 1 1 . 1 2 1 1 1 1 1 . 1 . 1 . . . 1 . 1 1 1 . 1 . 1 Garrison Relay 32 | . . . . . . 4 . 4 . 4 . 4 . . . . . 4 . 4 . 4 . 4 . . Machines Sabotaged . | . . . . . . . . . . . . . . . . . . . . . . . . . . . Garrisons Compromised . | . . . . . . . . . . . . . . . . . . . . . . . . . . . Overloaded Fab Kills . | . . . . . . . . . . . . . . . . . . . . . . . . . . . Hacking | -11 -10 -10 -10 -9 -8 -8 -7 -7 -7 -7 -6 -6 -6 -6 -6 -6 -6 -6 -5 -5 -4 -4 -4 -4 -3 -3 --------- Run | Scr Mat Min Exi Min Mat Gar Fac Gar Fac Gar Fac Gar Fac Ext Cet Arc Hub Gar Fac Gar Fac Gar Fac Gar Res Qua Machines Accessed 96 | . 8 . 2 . 13 . 7 . 10 . 6 . 2 11 1 . 2 . 4 . 10 . 8 . 5 7 Terminals 68 | . 6 . . . 10 . 5 . 7 . 4 . 1 10 1 . 1 . 3 . 7 . 4 . 3 6 Fabricators 5 | . . . . . . . 1 . 1 . . . . . . . . . . . 1 . 1 . 1 . Repair Stations 7 | . . . . . . . . . 1 . 1 . . . . . . . . . 1 . 2 . 1 1 Recycling Units 5 | . 2 . . . 1 . . . . . . . 1 1 . . . . . . . . . . . . Scanalyzers 1 | . . . . . 1 . . . . . . . . . . . . . . . . . . . . . Garrison Access 8 | . . . . . 1 . 1 . 1 . 1 . . . . . 1 . 1 . 1 . 1 . . . Total Hacks 209 | . 22 . 2 . 39 . 12 . 25 . 17 . 4 17 1 . 6 . 11 . 19 . 14 . 9 11 Successful 108 | . 11 . 2 . 22 . 6 . 13 . 9 . 1 12 1 . 4 . 6 . 5 . 8 . 3 5 Failed 99 | . 10 . . . 16 . 6 . 12 . 8 . 3 5 . . 2 . 5 . 14 . 6 . 6 6 Catastrophic 17 | . . . . . 4 . 2 . 1 . 1 . . . . . 1 . 2 . 1 . 2 . 2 1 Database Lockouts 2 | . 1 . . . 1 . . . . . . . . . . . . . . . . . . . . . Manual 129 | . 14 . 1 . 21 . 10 . 15 . 11 . 4 6 1 . 5 . 8 . 14 . 8 . 4 7 Terminals 163 | . 20 . . . 31 . 9 . 19 . 13 . 2 16 1 . 5 . 10 . 16 . 7 . 4 10 Fabricators 14 | . . . . . . . 2 . 3 . . . . . . . . . . . 1 . 4 . 4 . Repair Stations 10 | . . . . . . . . . 2 . 3 . . . . . . . . . 1 . 2 . 1 1 Recycling Units 6 | . 2 . . . 1 . . . . . . . 2 1 . . . . . . . . . . . . Scanalyzers 6 | . . . . . 6 . . . . . . . . . . . . . . . . . . . . . Garrison Access 8 | . . . . . 1 . 1 . 1 . 1 . . . . . 1 . 1 . 1 . 1 . . . Terminal Hacks 48 | . 6 . 2 . 13 . 1 . 5 . 3 . . 9 1 . 1 . 2 . 2 . 2 . . 1 Record 1 | . . . 1 . . . . . . . . . . . . . . . . . . . . . . . Part Schematic 1 | . . . . . . . . . 1 . . . . . . . . . . . . . . . . . Robot Schematic 1 | . . . . . . . 1 . . . . . . . . . . . . . . . . . . . Robot Analysis 5 | . 2 . . . 2 . . . . . . . . 1 . . . . . . . . . . . . Prototype ID Bank 3 | . 1 . . . 1 . . . . . . . . 1 . . . . . . . . . . . . Open Door 6 | . . . . . . . . . . . . . . 5 1 . . . . . . . . . . . Branch Access Points 2 | . 1 . . . . . . . . . 1 . . . . . . . . . . . . . . . Terminal Index 2 | . . . . . . . . . . . 1 . . . . . 1 . . . . . . . . . Garrison Index 1 | . . . . . . . . . 1 . . . . . . . . . . . . . . . . . Alert Level 4 | . . . . . 4 . . . . . . . . . . . . . . . . . . . . . Unreport Threat 10 | . . . . . 3 . . . 1 . 1 . . . . . . . 1 . 2 . 2 . . . Locate Traps 4 | . 1 . . . 1 . . . 1 . . . . 1 . . . . . . . . . . . . Reprogram Traps 1 | . . . . . . . . . . . . . . 1 . . . . . . . . . . . . Recall Reinforcements 1 | . . . . . . . . . . . . . . . . . . . . . . . . . . 1 Hauler Manifests 4 | . 1 . . . 1 . . . 1 . . . . . . . . . 1 . . . . . . . Zone Layout 1 | . . . . . 1 . . . . . . . . . . . . . . . . . . . . . EX-Prototype ID Bank 1 | . . . 1 . . . . . . . . . . . . . . . . . . . . . . . Fabricator Hacks 6 | . . . . . . . 1 . 2 . . . . . . . . . . . . . 2 . 1 . Network Status 1 | . . . . . . . . . . . . . . . . . . . . . . . . . 1 . Load Schematic 2 | . . . . . . . . . 1 . . . . . . . . . . . . . 1 . . . Build 3 | . . . . . . . 1 . 1 . . . . . . . . . . . . . 1 . . . Repair Station Hacks . | . . . . . . . . . . . . . . . . . . . . . . . . . . . Recycling Unit Hacks . | . . . . . . . . . . . . . . . . . . . . . . . . . . . Scanalyzer 5 | . . . . . 5 . . . . . . . . . . . . . . . . . . . . . Insert Component 3 | . . . . . 3 . . . . . . . . . . . . . . . . . . . . . Analyze 2 | . . . . . 2 . . . . . . . . . . . . . . . . . . . . . Garrison Access Hacks 8 | . . . . . 1 . 1 . 1 . 1 . . . . . 1 . 1 . 1 . 1 . . . Unlock Access 8 | . . . . . 1 . 1 . 1 . 1 . . . . . 1 . 1 . 1 . 1 . . . Unauthorized Hacks 41 | . 5 . . . 3 . 3 . 5 . 5 . 1 3 . . 2 . 3 . 2 . 3 . 2 4 Terminals 30 | . 3 . . . 2 . 2 . 4 . 4 . . 2 . . 2 . 3 . 1 . 2 . 2 3 Assimilate 1 | . . . . . . . . . . . 1 . . . . . . . . . . . . . . . Botnet 20 | . 2 . . . 2 . 1 . 3 . 2 . . 2 . . 1 . 2 . . . 1 . 1 3 Operators 9 | . 1 . . . . . 1 . 1 . 1 . . . . . 1 . 1 . 1 . 1 . 1 . Fabricators 1 | . . . . . . . 1 . . . . . . . . . . . . . . . . . . . Haulers 1 | . . . . . . . 1 . . . . . . . . . . . . . . . . . . . Repair Stations 5 | . . . . . . . . . 1 . 1 . . . . . . . . . 1 . 1 . . 1 Mechanics 5 | . . . . . . . . . 1 . 1 . . . . . . . . . 1 . 1 . . 1 Recycling Units 5 | . 2 . . . 1 . . . . . . . 1 1 . . . . . . . . . . . . Reject 1 | . . . . . . . . . . . . . . 1 . . . . . . . . . . . . Recyclers 1 | . . . . . . . . . . . . . 1 . . . . . . . . . . . . . Tunnel 3 | . 2 . . . 1 . . . . . . . . . . . . . . . . . . . . . Scanalyzers . | . . . . . . . . . . . . . . . . . . . . . . . . . . . Garrison Access . | . . . . . . . . . . . . . . . . . . . . . . . . . . . Data Cores Recovered . | . . . . . . . . . . . . . . . . . . . . . . . . . . . Used . | . . . . . . . . . . . . . . . . . . . . . . . . . . . Hacking Detections 79 | . 5 . . . 11 . 6 . 9 . 6 . 2 7 1 . 1 . 4 . 9 . 6 . 5 7 Full Trace Events 4 | . . . . . . . . . 1 . . . 1 . . . . . . . 1 . 1 . . . Feedback Events . | . . . . . . . . . . . . . . . . . . . . . . . . . . . Feedback Blocked . | . . . . . . . . . . . . . . . . . . . . . . . . . . . Robot Schematics Acquired 1 | . . . . . . . 1 . . . . . . . . . . . . . . . . . . . Robots Built 1 | . . . . . . . . . . . . . . . . . . . . . . . 1 . . . Authchips . | . . . . . . . . . . . . . . . . . . . . . . . . . . . Time 116 | . . . . . . . . . . . . . . . . . . . . . . . 116 . . . Total Robot Build Rating 3 | . . . . . . . . . . . . . . . . . . . . . . . 3 . . . Part Schematics Acquired 3 | . . . . . 2 . . . 1 . . . . . . . . . . . . . . . . . Parts Built 4 | . . . . . . . 2 . 2 . . . . . . . . . . . . . . . . . Authchips . | . . . . . . . . . . . . . . . . . . . . . . . . . . . Time 112 | . . . . . . . 84 . 28 . . . . . . . . . . . . . . . . . Total Part Build Rating 16 | . . . . . . . 8 . 8 . . . . . . . . . . . . . . . . . Parts Repaired . | . . . . . . . . . . . . . . . . . . . . . . . . . . . Time . | . . . . . . . . . . . . . . . . . . . . . . . . . . . Parts Recycled . | . . . . . . . . . . . . . . . . . . . . . . . . . . . Recycled Matter . | . . . . . . . . . . . . . . . . . . . . . . . . . . . Retrieved Matter . | . . . . . . . . . . . . . . . . . . . . . . . . . . . Retrieved Components . | . . . . . . . . . . . . . . . . . . . . . . . . . . . Parts Scanalyzed 2 | . . . . . 2 . . . . . . . . . . . . . . . . . . . . . Part Schematics Acquired 2 | . . . . . 2 . . . . . . . . . . . . . . . . . . . . . Parts Damaged . | . . . . . . . . . . . . . . . . . . . . . . . . . . . Bothacking | -11 -10 -10 -10 -9 -8 -8 -7 -7 -7 -7 -6 -6 -6 -6 -6 -6 -6 -6 -5 -5 -4 -4 -4 -4 -3 -3 ------------ Run | Scr Mat Min Exi Min Mat Gar Fac Gar Fac Gar Fac Gar Fac Ext Cet Arc Hub Gar Fac Gar Fac Gar Fac Gar Res Qua Used RIF Installer 8 | . . . . . . 1 . 1 . 1 . 1 . . . . . 1 . 1 . 1 . 1 . . Coupler Efficiency 1 | . . . . . . . . . . . . . . . . . . . . . . . . 1 . . Threat Obfuscator 1 | . . . . . . . . . . . . 1 . . . . . . . . . . . . . . Signal Jammer 1 | . . . . . . . . . . . . . . . . . . 1 . . . . . . . . Zone Cloak 1 | . . . . . . . . 1 . . . . . . . . . . . . . . . . . . Watcher Feeds 1 | . . . . . . . . . . 1 . . . . . . . . . . . . . . . . Patrol Navigation 1 | . . . . . . . . . . . . . . . . . . . . . . 1 . . . . Program Shield 1 | . . . . . . . . . . . . . . . . . . . . 1 . . . . . . Robots Hacked 196 | . . . . . . 1 8 14 20 15 2 20 . 11 1 . . 10 3 11 28 12 9 8 17 6 Non-combat 39 | . . . . . . . 7 . 6 . 2 . . 3 . . . . 3 . 10 . 2 . 4 2 Combat 157 | . . . . . . 1 1 14 14 15 . 20 . 8 1 . . 10 . 11 18 12 7 8 13 4 Robot Hacks Applied 214 | . . . . . . 1 14 14 23 15 2 20 . 12 1 . . 10 3 11 33 13 9 8 19 6 parse_system 5 | . . . . . . . . . . . . . . 1 . . . 1 . . . . . . 3 . no_distress 1 | . . . . . . . 1 . . . . . . . . . . . . . . . . . . . find_chute 4 | . . . . . . . 1 . . . 1 . . . . . . . 1 . 1 . . . . . find_fabricator 2 | . . . . . . . . . 1 . . . . . . . . . 1 . . . . . . . drop_inventory 10 | . . . . . . . 1 . 2 . . . . 3 . . . . . . 2 . . . . 2 find_recycling 2 | . . . . . . . 1 . . . . . . . . . . . . . . . . . 1 . ignore_parts 1 | . . . . . . . 1 . . . . . . . . . . . . . . . . . . . deconstruct_bot 3 | . . . . . . . . . . . . . . . . . . . . . 3 . . . . . purge_threat 4 | . . . . . . . 1 . 1 . . . . . . . . . . . 2 . . . . . locate_traps 1 | . . . . . . . 1 . . . . . . . . . . . . . . . . . . . disarm_traps 1 | . . . . . . . 1 . . . . . . . . . . . . . . . . . . . block_reporting 1 | . . . . . . . . . . . . . . . . . . . 1 . . . . . . . map_route 9 | . . . . . . . 2 . 2 . . . . . . . . . . . 2 . 1 . 2 . mark_security 1 | . . . . . . . 1 . . . . . . . . . . . . . . . . . . . find_shortcuts 2 | . . . . . . . . . . . . . . . . . . . . 1 1 . . . . . find_garrison 4 | . . . . . . . 1 . 1 . . . . . . . . . . . 1 . 1 . . . scatter_targeting 1 | . . . . . . . . . . . . . . . . . . 1 . . . . . . . . amplify_resonance 17 | . . . . . . . . 1 . 2 . 3 . . . . . 3 . . 4 . . 3 1 . reboot_system 69 | . . . . . . . . 3 10 6 . 8 . 8 . . . 1 . 8 5 12 2 1 1 4 go_dormant 1 | . . . . . . . . . 1 . . . . . . . . . . . . . . . . . overwrite_iff 40 | . . . . . . . . 5 3 . . 3 . . 1 . . 4 . 2 6 . 4 2 10 . streamctrl_low 1 | . . . . . . . . . . . . . . . . . . . . . 1 . . . . . formatsys_low 7 | . . . . . . . 1 . 1 . 1 . . . . . . . . . 2 . 1 . 1 . formatsys_high 27 | . . . . . . 1 1 5 1 7 . 6 . . . . . . . . 3 1 . 2 . . Relay Couplers Released 126 | . . . . . . 18 . 18 . 17 . 14 . . . . . 16 . 13 . 15 . 15 . . Machine Destruction 126 | . . . . . . 18 . 18 . 17 . 14 . . . . . 16 . 13 . 15 . 15 . . Attached 65 | . . . . . . 1 3 6 6 6 2 8 . . . . . 6 . 3 7 4 4 4 4 1 Fabnet Peak Effective % . | . . . . . . . . . . . . . . . . . . . . . . . . . . . Robots Rewired 44 | . . . . . . . . . . 9 . . . 17 . . . . . 3 3 6 . 6 . . Allies Hacked 1 | . . . . . . . . . . . . . . . . . . . . . . . 1 . . . Hacks Repelled . | . . . . . . . . . . . . . . . . . . . . . . . . . . . Allies | -11 -10 -10 -10 -9 -8 -8 -7 -7 -7 -7 -6 -6 -6 -6 -6 -6 -6 -6 -5 -5 -4 -4 -4 -4 -3 -3 -------- Run | Scr Mat Min Exi Min Mat Gar Fac Gar Fac Gar Fac Gar Fac Ext Cet Arc Hub Gar Fac Gar Fac Gar Fac Gar Res Qua Total Allies 134 | . . 2 . . . 1 2 10 5 16 2 9 . 25 6 . . 4 . 5 15 7 6 10 9 . Largest Group 27 | . . 2 . . . 1 1 5 1 12 8 9 6 27 27 22 21 15 12 13 13 7 7 6 7 . Highest-Rated Group 1084 | . . 45 . . . 15 32 112 20 246 180 230 181 948 1084 1084 941 739 659 665 665 331 331 294 317 . Highest-Rated Ally 159 | . . 31 . . . 15 32 32 20 32 32 40 40 159 159 143 96 96 96 96 96 49 49 49 56 . Total Orders 148 | . . . . . . . . 2 . 13 1 39 9 16 1 2 4 8 1 19 4 . 25 . 4 . STAY 74 | . . . . . . . . 2 . 7 . 25 4 10 . . 1 4 . 8 . . 13 . . . FOLLOW 39 | . . . . . . . . . . 6 . 8 3 3 . . 3 3 . 7 . . 6 . . . GUARD 1 | . . . . . . . . . . . . 1 . . . . . . . . . . . . . . AID 29 | . . . . . . . . . . . 1 5 2 3 1 2 . 1 1 4 2 . 6 . 1 . EXPLORE 4 | . . . . . . . . . . . . . . . . . . . . . 1 . . . 3 . RETURN 1 | . . . . . . . . . . . . . . . . . . . . . 1 . . . . . Ally Attacks 930 | . . 19 . . . 2 5 64 12 25 25 43 16 123 118 37 49 44 39 65 107 3 59 18 57 . Total Damage 25761 | . . 272 . . . 47 193 1365 250 570 810 1352 477 2842 2663 769 1604 1285 1117 2471 3803 21 1739 462 1649 . Kills 162 | . . 3 . . . . 1 17 . 7 5 6 3 15 19 4 4 11 8 17 24 1 13 1 3 . Allies Corrupted 5 | . . . . . . 1 . . . . . . . . . . 1 . . . 2 . . . 1 . Allies Melted 3 | . . . . . . . . . . . . 1 . . . . . . . . 1 . . . 1 . Intel | -11 -10 -10 -10 -9 -8 -8 -7 -7 -7 -7 -6 -6 -6 -6 -6 -6 -6 -6 -5 -5 -4 -4 -4 -4 -3 -3 ------- Run | Scr Mat Min Exi Min Mat Gar Fac Gar Fac Gar Fac Gar Fac Ext Cet Arc Hub Gar Fac Gar Fac Gar Fac Gar Res Qua Robot Analysis Total 5 | . 2 . . . 2 . . . . . . . . 1 . . . . . . . . . . . . Derelict Logs Recovered 3 | . . 2 . 1 . . . . . . . . . . . . . . . . . . . . . . Drone Launches 5 | . . . . . . . . . . . . . . . . . . . . . 1 . . . 4 . Drone Recoveries 1 | . . . . . . . . . . . . . . . . . . . . . 1 . . . . . Exploration | -11 -10 -10 -10 -9 -8 -8 -7 -7 -7 -7 -6 -6 -6 -6 -6 -6 -6 -6 -5 -5 -4 -4 -4 -4 -3 -3 ------------- Run | Scr Mat Min Exi Min Mat Gar Fac Gar Fac Gar Fac Gar Fac Ext Cet Arc Hub Gar Fac Gar Fac Gar Fac Gar Res Qua Turns Passed 54277 | 168 1430 1285 940 1572 5244 2357 1641 3218 1417 4534 875 5257 326 2664 315 1068 162 4099 398 2826 1611 3358 1891 2262 2299 1060 Spaces Moved 24596 | 82 529 683 435 617 1939 1164 603 1405 624 1821 356 2927 200 1122 172 227 98 2324 242 1475 737 1356 767 943 1067 681 Core 30 | 2 . . . . . . . . . . . . . . . 28 . . . . . . . . . . Treads 18023 | 80 217 . . . 1084 1164 603 1405 624 1821 356 2927 200 1122 172 199 98 2324 242 1475 737 1173 . . . . Legs 2896 | . . . . . . . . . . . . . . . . . . . . . . 183 767 943 824 179 Wheels 2902 | . 312 683 435 617 855 . . . . . . . . . . . . . . . . . . . . . Hover 745 | . . . . . . . . . . . . . . . . . . . . . . . . . 243 502 Flight . | . . . . . . . . . . . . . . . . . . . . . . . . . . . Fastest Speed 50 | 50 160 135 215 215 135 157 243 163 166 166 162 162 162 162 160 160 160 160 160 160 160 160 190 120 56 56 Average Speed 183 | 157 204 155 215 215 199 179 244 200 183 196 231 162 162 209 161 380 160 160 160 160 160 205 190 185 169 95 Slowest Speed 1950 | 160 320 215 215 215 320 243 248 245 248 248 246 162 162 242 162 1950 160 160 160 160 160 560 190 400 390 260 Overloaded Moves . | . . . . . . . . . . . . . . . . . . . . . . . . . . . Propulsion Burnouts . | . . . . . . . . . . . . . . . . . . . . . . . . . . . Robots Hopped 1 | . . . . . . . . . . . . . . . . . . . . . . . 1 . . . Cave-ins Triggered . | . . . . . . . . . . . . . . . . . . . . . . . . . . . Teleports 2 | . . . . . . . . . . . . . . . . . . . . . . . . . . 2 Exploration Rate (%) 63 | 7 99 99 70 93 98 84 15 91 22 89 16 99 8 98 67 83 10 99 13 99 32 91 21 86 60 64 Regions Visited 26 Branch Regions 8 Pre-discovered Areas 7 | . 2 3 1 . 1 . . . . . . . . . . . . . . . . . . . . . Known Exits Taken 10 | . 1 . . . 1 . 1 . 1 . 1 . 1 . . . 1 . 1 . 1 . 1 . . . Unknown Exits Taken 8 | 1 . 1 1 1 . . . . . . . . . 1 1 1 . . . . . . . . 1 . Scrap Searched 4 | . . 1 . 3 . . . . . . . . . . . . . . . . . . . . . . Spaces Dug 75 | . . . . . 23 . . . 6 . 2 1 1 2 . . 1 1 1 . 4 . 11 1 15 6 Terrain Destroyed 711 | . 22 211 . 32 66 58 . . 9 31 2 1 1 9 . . 1 1 2 16 38 48 17 1 106 39 Melee 55 | . . . . . 9 . . . 5 . . 1 1 2 . . 1 1 1 . 1 . 11 1 15 6 Projectile 58 | . . . . . 2 . . . 4 . 2 . . 7 . . . . 1 . 21 4 . . 17 . AOE 596 | . 22 211 . 32 55 58 . . . 31 . . . . . . . . . 16 16 42 6 . 74 33 Terrain Rammed . | . . . . . . . . . . . . . . . . . . . . . . . . . . . Walls Destroyed . | . . . . . . . . . . . . . . . . . . . . . . . . . . . Machines Disabled . | . . . . . . . . . . . . . . . . . . . . . . . . . . . Actions | -11 -10 -10 -10 -9 -8 -8 -7 -7 -7 -7 -6 -6 -6 -6 -6 -6 -6 -6 -5 -5 -4 -4 -4 -4 -3 -3 --------- Run | Scr Mat Min Exi Min Mat Gar Fac Gar Fac Gar Fac Gar Fac Ext Cet Arc Hub Gar Fac Gar Fac Gar Fac Gar Res Qua Total 31390 | 102 792 850 440 853 2900 1328 715 1681 802 2646 400 3318 201 1332 210 431 102 2622 249 1816 1005 1762 1040 1384 1397 1012 Wait 3184 | . 195 110 . 224 555 28 14 19 43 474 9 182 1 46 11 205 4 115 1 183 81 102 70 237 49 226 Move 24570 | 81 528 682 434 616 1938 1163 602 1404 623 1820 355 2926 199 1121 171 226 97 2323 241 1474 737 1355 765 942 1066 681 Hop 1 | . . . . . . . . . . . . . . . . . . . . . . . 1 . . . Pick Up 441 | 5 10 9 6 2 47 21 9 54 10 48 5 36 . 4 1 . . 46 1 19 12 31 15 23 17 10 Fast Attach 200 | 6 3 1 . . 25 1 2 1 2 8 . 5 . 3 11 . . 2 . 6 8 33 25 14 34 10 Attach 184 | 1 2 6 . 1 33 3 4 5 4 8 3 5 . 3 1 . . 3 1 11 9 17 11 15 20 18 Detach 93 | . 1 1 . . 10 . 3 1 2 4 2 4 . 3 1 . . 3 . 8 6 16 4 6 14 4 Swap 296 | . 4 4 . 4 27 8 23 18 22 21 5 13 . 23 . . . 16 . 7 18 21 24 11 26 1 Drop 443 | . 3 . . 1 45 21 11 51 12 49 6 35 . 11 13 . . 43 . 17 7 38 24 11 34 11 Fire 1196 | 7 43 37 . 5 205 69 32 91 52 115 11 56 . 73 1 . . 30 4 29 101 101 19 38 64 13 Melee 584 | . . . . . 12 4 14 25 31 19 . 55 1 28 . . 1 41 1 57 20 40 82 42 73 38 Ram 1 | . 1 . . . . . . . . . . . . . . . . . . . . . . . . . Kick . | . . . . . . . . . . . . . . . . . . . . . . . . . . . Crush 24 | 2 2 . . . 3 . . . 1 . 4 . . 6 . . . . . . 6 . . . . . Escape Stasis 85 | . . . . . . 9 . 12 . 8 . 1 . 1 . . . . . 1 . 8 . 45 . . Rewire 88 | . . . . . . 1 1 . . 72 . . . 10 . . . . . 4 . . . . . . Trap . | . . . . . . . . . . . . . . . . . . . . . . . . . . . Miscellaneous . | . . . . . . . . . . . . . . . . . . . . . . . . . . . Route ------- -11/Scrapyard -10/Materials (discovered 5 exits: [*Mat x3] / *Min x2) -10/Mines (discovered 3 exits: [*Mat x2] / *Exi) -10/Exiles -9/Mines -8/Materials (discovered 6 exits: *Fac x3 / *Sto x2 / Gar) -8/Garrison (discovered 3 exits: *Fac x3) -7/Factory (discovered 2 exits: [*Low] / Gar) -7/Garrison (discovered 3 exits: *Fac x3) -7/Factory (discovered 2 exits: *Fac / Gar) -7/Garrison (discovered 3 exits: *Fac x3) -6/Factory (discovered 5 exits: Low x2 / Ext x2 / Gar) -6/Garrison (discovered 3 exits: *Fac x3) -6/Factory -6/Extension (discovered 2 exits: *Fac / *Cet) -6/Cetus (discovered 2 exits: *Fac / [*Arc]) -6/Archives (discovered 3 exits: *Fac / *Hub x2) -6/Hub_04(d) -6/Garrison (discovered 3 exits: *Fac x3) -5/Factory -5/Garrison (discovered 3 exits: *Fac x3) -4/Factory (discovered 4 exits: *Res / [*Upp] / [*Arm] / Gar) -4/Garrison (discovered 3 exits: *Fac x3) -4/Factory (discovered 2 exits: *Res / Gar) -4/Garrison (discovered 3 exits: *Res x3) -3/Research (discovered 4 exits: [*Res x3] / *Qua) -3/Quarantine (discovered 1 exit: [*Res]) History --------- Turn | Location | Event 15 | -11/Scrapyard | Discovered new exit (range 14) 169 | -11/Scrapyard | Entered Materials 316 | -10/Materials | Build established: Mutant 412 | -10/Materials | Discovered new exit (range 16) 901 | -10/Materials | Discovered new exit (range 16) 1127 | -10/Materials | Identified exit to Mines 1184 | -10/Materials | Discovered new exit (range 16) 1328 | -10/Materials | Central database locked down 1599 | -10/Materials | Entered Mines 1617 | -10/Mines | Discovered new exit (range 9) 1619 | -10/Mines | Learned location of Storage (-8) 1734 | -10/Mines | Assembled infested the area 1750 | -10/Mines | Core integrity fell below 50% 1786 | -10/Mines | Lost 5 parts (1n2u2w) 2161 | -10/Mines | Deemed a non-threat by the Exiles lab entrance 2312 | -10/Mines | Core integrity fell below 20% 2503 | -10/Mines | Discovered new exit (range 5) 2622 | -10/Mines | Joined a pair of Derelicts in attacking an 0b10 outpost 2876 | -10/Mines | Discovered new exit (range 5) 2884 | -10/Mines | Entered Exiles 2936 | -10/Exiles | Met 8R-AWN 2968 | -10/Exiles | Met EX-HEX 3054 | -10/Exiles | Met EX-DEC 3287 | -10/Exiles | Learned location of Zion (-7) 3325 | -10/Exiles | Met EX-BIN 3355 | -10/Exiles | Aligned with FarCom system 3357 | -10/Exiles | Given EX-Vault access code 3413 | -10/Exiles | Opened EX-Vault 3424 | -10/Exiles | Found XL Autogun Array 3429 | -10/Exiles | Found Longsword +1 3433 | -10/Exiles | Found Supersonic Drone Bay 3479 | -10/Exiles | Warned to stay clear of 0b10 Research branches 3800 | -10/Exiles | Discovered new exit (range 10) 3824 | -10/Exiles | Stole three prototypes: Supersonic Drone Bay, XL Autogun Array, Longsword +1 3824 | -10/Exiles | Entered Mines 3860 | -9/Mines | A weapon hastily lodged in a ceiling crevice suddenly fell to the ground 4434 | -9/Mines | Discovered new exit (range 7) 5396 | -9/Mines | Entered Materials 5396 | -8/Materials | Evolved 4 slots: Propulsion x2, Utility x2 5397 | -8/Materials | Identified exit to Storage 5769 | -8/Materials | Lost 3 parts (1n2u) 5822 | -8/Materials | Central database locked down 5877 | -8/Materials | Build established: Scavenger-Mutant 6374 | -8/Materials | Discovered new exit (range 9) 8107 | -8/Materials | Discovered new exit (range 8) 8302 | -8/Materials | Discovered exit to Storage (range 4) 8627 | -8/Materials | Lost 7 parts (2p2n3u) 8865 | -8/Materials | Discovered new exit (range 16) 8996 | -8/Materials | First assault squad dispatched 9081 | -8/Materials | Core integrity fell below 50% 9274 | -8/Materials | Identified exit to Garrison 9713 | -8/Materials | Build established: Mutant 10640 | -8/Materials | Entered Garrison 10712 | -8/Garrison | Triggered checkpoint 10755 | -8/Garrison | Garrison Relay disabled 10832 | -8/Garrison | Triggered checkpoint 10889 | -8/Garrison | Discovered new exit (range 13) 10918 | -8/Garrison | Installed Relay Interface Framework 11010 | -8/Garrison | Triggered checkpoint 11036 | -8/Garrison | Garrison Relay disabled 11314 | -8/Garrison | Triggered checkpoint 11462 | -8/Garrison | Discovered new exit (range 12) 11486 | -8/Garrison | Build established: Bothacker-Mutant 11536 | -8/Garrison | Garrison Relay disabled 11718 | -8/Garrison | Triggered checkpoint 11899 | -8/Garrison | Discovered new exit (range 15) 12056 | -8/Garrison | Triggered checkpoint 12100 | -8/Garrison | Garrison Relay disabled 12862 | -8/Garrison | Triggered checkpoint 12997 | -8/Garrison | Entered Factory 12997 | -7/Factory | Evolved 2 slots: Propulsion x1, Utility x1 12999 | -7/Factory | FarCom data flow suspended 13434 | -7/Factory | Discovered new exit (range 7) 14402 | -7/Factory | Fabricated Imp. Titanium Leg? 14636 | -7/Factory | Identified exit to Garrison 14638 | -7/Factory | Entered Garrison 14638 | -7/Garrison | Accompanied by 1 ally 14651 | -7/Garrison | Expanded RIF knowledge: Zone Cloak 14754 | -7/Garrison | Triggered checkpoint 15017 | -7/Garrison | Garrison Relay disabled 15100 | -7/Garrison | Triggered checkpoint 15202 | -7/Garrison | Triggered checkpoint 15233 | -7/Garrison | Garrison Relay disabled 15298 | -7/Garrison | Discovered new exit (range 8) 15382 | -7/Garrison | Triggered checkpoint 15432 | -7/Garrison | Discovered new exit (range 12) 15500 | -7/Garrison | Triggered checkpoint 15519 | -7/Garrison | Garrison Relay disabled 15610 | -7/Garrison | Triggered checkpoint 15620 | -7/Garrison | Triggered checkpoint 15720 | -7/Garrison | Triggered checkpoint 15836 | -7/Garrison | Discovered new exit (range 3) 15937 | -7/Garrison | Garrison Relay disabled 17856 | -7/Garrison | Entered Factory 18459 | -7/Factory | Discovered new exit (range 3) 19058 | -7/Factory | Fabricated System Restoration Module? 19254 | -7/Factory | Identified exit to Garrison 19273 | -7/Factory | Entered Garrison 19696 | -7/Garrison | Triggered checkpoint 19731 | -7/Garrison | Garrison Relay disabled 19832 | -7/Garrison | Triggered checkpoint 19839 | -7/Garrison | Triggered checkpoint 19957 | -7/Garrison | Triggered checkpoint 19957 | -7/Garrison | Triggered checkpoint 19997 | -7/Garrison | Destroyed 11 combat bots 20892 | -7/Garrison | Discovered new exit (range 6) 20900 | -7/Garrison | Triggered checkpoint 20910 | -7/Garrison | Expanded RIF knowledge: Watcher Feeds 20919 | -7/Garrison | Build established: Commander-Mutant 20942 | -7/Garrison | Triggered checkpoint 20958 | -7/Garrison | Triggered checkpoint 21068 | -7/Garrison | Garrison Relay disabled 21280 | -7/Garrison | Triggered checkpoint 21305 | -7/Garrison | Garrison Relay disabled 21366 | -7/Garrison | Discovered new exit (range 13) 21522 | -7/Garrison | Discovered new exit (range 10) 21546 | -7/Garrison | Build established: Bothacker-Mutant 21604 | -7/Garrison | Triggered checkpoint 21642 | -7/Garrison | Garrison Relay disabled 23257 | -7/Garrison | Build established: Commander-Mutant 23807 | -7/Garrison | Entered Factory 23807 | -6/Factory | Accompanied by 8 allies 23807 | -6/Factory | Evolved 2 slots: Utility x2 23915 | -6/Factory | Build established: Bothacker-Mutant 24042 | -6/Factory | Identified exit to Lower Caves 24042 | -6/Factory | Identified exit to Extension 24672 | -6/Factory | Identified exit to Garrison 24682 | -6/Factory | Entered Garrison 24682 | -6/Garrison | Accompanied by 6 allies 24800 | -6/Garrison | Triggered checkpoint 24853 | -6/Garrison | Garrison Relay disabled 25108 | -6/Garrison | Spotted B-75 Beast 25121 | -6/Garrison | Triggered checkpoint 25428 | -6/Garrison | Triggered checkpoint 25601 | -6/Garrison | Allies destroyed B-75 Beast 25786 | -6/Garrison | Triggered checkpoint 25844 | -6/Garrison | Garrison Relay disabled 26240 | -6/Garrison | Triggered checkpoint 26250 | -6/Garrison | Discovered new exit (range 10) 26342 | -6/Garrison | Triggered checkpoint 26444 | -6/Garrison | Triggered checkpoint 26558 | -6/Garrison | Garrison Relay disabled 26642 | -6/Garrison | Discovered new exit (range 12) 26674 | -6/Garrison | Expanded RIF knowledge: Threat Obfuscation 26802 | -6/Garrison | Discovered new exit (range 9) 26870 | -6/Garrison | Triggered checkpoint 26929 | -6/Garrison | Garrison Relay disabled 26979 | -6/Garrison | Build established: Botlord-Mutant 27289 | -6/Garrison | Triggered checkpoint 29438 | -6/Garrison | Build established: Commander-Mutant 29928 | -6/Garrison | Build established: Botlord-Mutant 29939 | -6/Garrison | Entered Factory 29939 | -6/Factory | Accompanied by 6 allies 30214 | -6/Factory | Discovered exit to Extension (range 12) 30265 | -6/Factory | Entered Extension 30265 | -6/Extension | Accompanied by 6 allies 31110 | -6/Extension | Rescued A7 31147 | -6/Extension | Rescued a captive Derelict 31231 | -6/Extension | Build established: Commander-Mutant 31456 | -6/Extension | Spotted B-75 Beast 31465 | -6/Extension | Allies destroyed B-75 Beast 31473 | -6/Extension | Spotted B-75 Beast 31485 | -6/Extension | Allies destroyed B-75 Beast 31758 | -6/Extension | Rescued a captive Derelict 31759 | -6/Extension | Rescued a captive Derelict 32079 | -6/Extension | Rescued a captive Derelict 32109 | -6/Extension | Rescued a captive Derelict 32138 | -6/Extension | Rescued a captive Derelict 32138 | -6/Extension | Rescued a captive Derelict 32592 | -6/Extension | Discovered new exit (range 10) 32595 | -6/Extension | Discovered new exit (range 6) 32929 | -6/Extension | Entered Cetus 32929 | -6/Cetus | Accompanied by 27 allies (A7) 32934 | -6/Cetus | Acquired a Cetus Manufacturing Module code from A7 32944 | -6/Cetus | Spotted Cetus Guard 32944 | -6/Cetus | Spotted Cetus Guard 32944 | -6/Cetus | Spotted Cetus Guard 32946 | -6/Cetus | Spotted Cetus Guard 32952 | -6/Cetus | Allies destroyed Cetus Guard 32953 | -6/Cetus | Allies destroyed Cetus Guard 32954 | -6/Cetus | Allies destroyed Cetus Guard 32954 | -6/Cetus | Allies destroyed Cetus Guard 33075 | -6/Cetus | Started Cetus Manufacturing Module 33085 | -6/Cetus | Escorted A7 to Cetus Mainframe 33100 | -6/Cetus | Manufactured an Enhanced Grunt 33105 | -6/Cetus | Discovered new exit (range 16) 33125 | -6/Cetus | Manufactured an Enhanced Grunt 33126 | -6/Cetus | Discovered new exit (range 27) 33133 | -6/Cetus | Spotted Cetus Guard 33136 | -6/Cetus | Spotted Cetus Guard 33139 | -6/Cetus | Spotted Cetus Guard 33139 | -6/Cetus | Spotted Cetus Guard 33145 | -6/Cetus | Allies destroyed Cetus Guard 33150 | -6/Cetus | Manufactured an Enhanced Grunt 33155 | -6/Cetus | Allies destroyed Cetus Guard 33156 | -6/Cetus | Allies destroyed Cetus Guard 33156 | -6/Cetus | Allies destroyed Cetus Guard 33158 | -6/Cetus | Met Revision 17 33175 | -6/Cetus | Manufactured an Enhanced Grunt 33200 | -6/Cetus | Manufactured an Enhanced Grunt 33244 | -6/Cetus | Entered Archives 33244 | -6/Archives | Accompanied by 22 allies (A7) 33249 | -6/Archives | Received a hacking code to weaken MAIN.C 33282 | -6/Archives | Discovered new exit (range 16) 33301 | -6/Archives | Discovered new exit (range 16) 33352 | -6/Archives | Discovered new exit (range 16) 34312 | -6/Archives | Entered Hub_04(d) 34312 | -6/Hub_04(d) | Accompanied by 21 allies 34332 | -6/Hub_04(d) | Identified exit to Garrison 34387 | -6/Hub_04(d) | Spotted B-75 Beast 34474 | -6/Hub_04(d) | Entered Garrison 34474 | -6/Garrison | Accompanied by 15 allies 34574 | -6/Garrison | Triggered checkpoint 34594 | -6/Garrison | Garrison Relay disabled 34882 | -6/Garrison | Triggered checkpoint 34892 | -6/Garrison | Triggered checkpoint 35102 | -6/Garrison | Triggered checkpoint 35150 | -6/Garrison | Garrison Relay disabled 35190 | -6/Garrison | Discovered new exit (range 11) 35220 | -6/Garrison | Expanded RIF knowledge: Signal Jamming 35298 | -6/Garrison | Triggered checkpoint 35447 | -6/Garrison | Build established: Botlord-Mutant 35518 | -6/Garrison | Discovered new exit (range 11) 35562 | -6/Garrison | Triggered checkpoint 35608 | -6/Garrison | Garrison Relay disabled 35760 | -6/Garrison | Triggered checkpoint 35832 | -6/Garrison | Triggered checkpoint 35850 | -6/Garrison | Discovered new exit (range 10) 37788 | -6/Garrison | Build established: Commander-Mutant 38562 | -6/Garrison | Build established: Botlord-Mutant 38573 | -6/Garrison | Entered Factory 38573 | -5/Factory | Accompanied by 12 allies 38573 | -5/Factory | Evolved 2 slots: Utility x1, Weapon x1 38946 | -5/Factory | Identified exit to Garrison 38971 | -5/Factory | Entered Garrison 38971 | -5/Garrison | Accompanied by 12 allies 39164 | -5/Garrison | Triggered checkpoint 39226 | -5/Garrison | Spotted B-75 Beast 39249 | -5/Garrison | Garrison Relay disabled 39499 | -5/Garrison | Build established: Botlord-Gladiator 39612 | -5/Garrison | Triggered checkpoint 39696 | -5/Garrison | Triggered checkpoint 39842 | -5/Garrison | Triggered checkpoint 39916 | -5/Garrison | Build established: Botlord-Mutant 39936 | -5/Garrison | Discovered new exit (range 9) 39960 | -5/Garrison | Expanded RIF knowledge: Program Shield 39988 | -5/Garrison | Triggered checkpoint 40049 | -5/Garrison | Garrison Relay disabled 40228 | -5/Garrison | Allies destroyed B-75 Beast 40402 | -5/Garrison | Triggered checkpoint 40450 | -5/Garrison | Garrison Relay disabled 40496 | -5/Garrison | Discovered new exit (range 10) 40586 | -5/Garrison | Triggered checkpoint 40632 | -5/Garrison | Discovered new exit (range 8) 40666 | -5/Garrison | Triggered checkpoint 40720 | -5/Garrison | Garrison Relay disabled 41611 | -5/Garrison | Found Enh. Force Lance 41614 | -5/Garrison | Found Enh. Force Lance 41797 | -5/Garrison | Entered Factory 41797 | -4/Factory | Accompanied by 13 allies 41797 | -4/Factory | Evolved 2 slots: Utility x1, Weapon x1 42047 | -4/Factory | First assault squad dispatched 42060 | -4/Factory | Found Prototype Processor 42060 | -4/Factory | Identified Exp. Signal Interpreter 42351 | -4/Factory | Discovered new exit (range 25) 42352 | -4/Factory | Discovered new exit (range 44) 42783 | -4/Factory | Identified exit to Research 42862 | -4/Factory | System corruption reached 10% 42956 | -4/Factory | Discovered new exit (range 27) 42964 | -4/Factory | Destroyed 10 combat bots 43184 | -4/Factory | Garrison activated, responded to threat 43343 | -4/Factory | Found Prototype Slashing Weapon 43408 | -4/Factory | Identified exit to Garrison 43408 | -4/Factory | Entered Garrison 43452 | -4/Garrison | Triggered checkpoint 43485 | -4/Garrison | Garrison Relay disabled 43500 | -4/Garrison | Identified Molecular Scythe 43534 | -4/Garrison | Triggered checkpoint 43649 | -4/Garrison | Triggered checkpoint 43716 | -4/Garrison | Destroyed 13 combat bots 43823 | -4/Garrison | Triggered checkpoint 44015 | -4/Garrison | Discovered new exit (range 8) 44036 | -4/Garrison | Expanded RIF knowledge: Patrol Navigation 44090 | -4/Garrison | Triggered checkpoint 44095 | -4/Garrison | Garrison Relay disabled 44178 | -4/Garrison | Lost 9 parts (1p3n3u2w) 44346 | -4/Garrison | Triggered checkpoint 44912 | -4/Garrison | Triggered checkpoint 44958 | -4/Garrison | Triggered checkpoint 45048 | -4/Garrison | Triggered checkpoint 45185 | -4/Garrison | Garrison Relay disabled 45283 | -4/Garrison | Discovered new exit (range 14) 45718 | -4/Garrison | Discovered new exit (range 10) 45798 | -4/Garrison | Triggered checkpoint 45821 | -4/Garrison | Garrison Relay disabled 46463 | -4/Garrison | Found Adv. Force Booster 46466 | -4/Garrison | Found Adv. Force Booster 46766 | -4/Garrison | Entered Factory 46766 | -4/Factory | Accompanied by 7 allies 47016 | -4/Factory | First assault squad dispatched 47223 | -4/Factory | Lost 4 parts (1p1n1u1w) 47533 | -4/Factory | Fabricated M-28 Smith? 47538 | -4/Factory | Core integrity fell below 50% 47562 | -4/Factory | Lost 3 parts (1p1n1u) 47965 | -4/Factory | Found Prototype Processor 47965 | -4/Factory | Identified Exp. Targeting Computer 48343 | -4/Factory | Discovered exit to Research (range 15) 48651 | -4/Factory | Found Prototype Processor 48657 | -4/Factory | Identified exit to Garrison 48657 | -4/Factory | Entered Garrison 48884 | -4/Garrison | Triggered checkpoint 48891 | -4/Garrison | Identified Exp. Terrain Scan Processor 48948 | -4/Garrison | Triggered checkpoint 48990 | -4/Garrison | Garrison Relay disabled 49206 | -4/Garrison | Triggered checkpoint 49206 | -4/Garrison | Triggered checkpoint 49207 | -4/Garrison | Triggered checkpoint 49243 | -4/Garrison | Core integrity fell below 20% 49283 | -4/Garrison | Lost 8 parts (1p2n2u3w) 49526 | -4/Garrison | Discovered exit to Research (range 9) 49592 | -4/Garrison | Triggered checkpoint 49621 | -4/Garrison | Garrison Relay disabled 49740 | -4/Garrison | Triggered checkpoint 49783 | -4/Garrison | Garrison Relay disabled 49875 | -4/Garrison | Discovered exit to Research (range 10) 50110 | -4/Garrison | Lost 4 parts (3n1u) 50152 | -4/Garrison | Discovered exit to Research (range 15) 50188 | -4/Garrison | Expanded RIF knowledge: Coupler Efficiency 50226 | -4/Garrison | Triggered checkpoint 50278 | -4/Garrison | Garrison Relay disabled 50919 | -4/Garrison | Entered Research 50919 | -3/Research | Accompanied by 6 allies 50919 | -3/Research | Evolved 2 slots: Propulsion x1, Weapon x1 51119 | -3/Research | Revision forces began assault on 0b10 51172 | -3/Research | Met up with Revision 17++ 51222 | -3/Research | Spotted B-86 Titan 51619 | -3/Research | Research terminal network offline 51704 | -3/Research | Found Enh. Force Lance 51708 | -3/Research | Found Enh. Force Lance 51711 | -3/Research | Found Enh. Force Lance 51714 | -3/Research | Discovered new exit (range 87) 51715 | -3/Research | Found Enh. Force Lance 52000 | -3/Research | Spotted Striker 52024 | -3/Research | Destroyed Striker 52448 | -3/Research | Discovered new exit (range 12) 52566 | -3/Research | Discovered new exit (range 44) 52629 | -3/Research | Spotted Striker 52664 | -3/Research | Destroyed Striker 52685 | -3/Research | Lost 4 parts (1p1n1u1w) 52710 | -3/Research | Spotted Striker 52726 | -3/Research | Destroyed Striker 52768 | -3/Research | Lost 4 parts (3n1u) 52793 | -3/Research | Spotted Striker 52810 | -3/Research | Spotted Striker 52812 | -3/Research | Spotted Striker 52825 | -3/Research | Destroyed Striker 52836 | -3/Research | Core integrity fell below 50% 52839 | -3/Research | Destroyed Striker 52842 | -3/Research | Destroyed Striker 52900 | -3/Research | Destroyed 8 combat bots 52901 | -3/Research | Lost 10 parts (3n5u2w) 53032 | -3/Research | Found Fusion Bomb Launcher 53049 | -3/Research | Spotted Striker 53059 | -3/Research | Destroyed Striker 53106 | -3/Research | Spotted Executioner 53113 | -3/Research | Spotted Striker 53122 | -3/Research | Destroyed Executioner 53182 | -3/Research | Destroyed Striker 53210 | -3/Research | Discovered new exit (range 13) 53218 | -3/Research | Entered Quarantine 53273 | -3/Quarantine | Found Alien Artifact 53273 | -3/Quarantine | Identified Phase Armor 53439 | -3/Quarantine | Found Alien Artifact 53439 | -3/Quarantine | Identified Dimensional Node Initializer 53439 | -3/Quarantine | Initialized slip node 53443 | -3/Quarantine | Found Alien Artifact 53576 | -3/Quarantine | Core integrity fell below 20% 53583 | -3/Quarantine | Cryocooling Duct disabled 53598 | -3/Quarantine | Ambient heat levels rising (+20) 53598 | -3/Quarantine | Non-combat units ordered to evacuate 53611 | -3/Quarantine | Lost 4 parts (1p1n1u1w) 53618 | -3/Quarantine | Destroyed 7 combat bots 53679 | -3/Quarantine | Discovered new exit (range 11) 53692 | -3/Quarantine | Found Alien Slashing Weapon 53692 | -3/Quarantine | Identified Sigix Broadsword 53798 | -3/Quarantine | Cryocooling Duct disabled 53813 | -3/Quarantine | Ambient heat levels rising (+20) 53813 | -3/Quarantine | Combat units ordered to evacuate 53845 | -3/Quarantine | Found Alien Impact Weapon 53913 | -3/Quarantine | Quarantine Guard activated 53987 | -3/Quarantine | Spotted Quarantine Guard 53993 | -3/Quarantine | Build established: Botlord-Gladiator 54026 | -3/Quarantine | Spotted Quarantine Guard 54076 | -3/Quarantine | Identified Transdimensional Reconstructor 54076 | -3/Quarantine | Warped through subspace to slip node 54093 | -3/Quarantine | Found Alien Artifact 54195 | -3/Quarantine | Spotted Quarantine Guard 54222 | -3/Quarantine | Identified Core Stripper 54271 | -3/Quarantine | Identified Hpw. Transdimensional Reconstructor 54271 | -3/Quarantine | Warped through subspace to slip node 54278 | -3/Quarantine | Destroyed Quarantine Guard 54278 | -3/Quarantine | Core destroyed Last Messages --------------- 54241_ Adv. Actuator Array destroyed. 54244_ Relay Coupler [Hunter] destroyed. 54244_ Critical hit (Blast). 54244_ Knocked back. 54247_ Phase Armor destroyed. 54249_ LVM=T23<:LUH#FYGBPCHDF5Y 54256_ Lgt. Antimatter Reactor destroyed. 54259_ Knocked back. 54259_ Core Stripper destroyed. 54264_ Kinetic Spear follow-up attack on Quarantine Guard. 54265_ Knocked back. 54268_ System corrupted: Heat flow error (+291). 54268_ Sigix Broadsword destroyed. 54268_ Knocked back. 54271_ Identified Hpw. Transdimensional Reconstructor. 54271_ Warped through subspace, drawn to slip node. 54278_ Dimensional Slip Node implodes. 54278_ Quarantine Guard destroyed. 54278_ Kinetic Spear destroyed. Map ----- +----------------------------------------------------+ | ??#""!!! """ # ##??# """ # #??????### | | ??#""!!! """ # #???# """"""" # #??????# | | ??###!! """ + #???# """"""" # #??????# | | ????# * # #???# # #??????# | | ????########### ################# #??????# | | ????????#####?# # """"""" ####??# ######## | | ????????#""" ?# # """"""" ""#??# + | | ????????#""" # # """"""" """#??# # | | ????????#""! # =#! R"#??# ! # | | ????????#""" + +% """#??# | | ????????#""" # #= ""#??######### # | | ????????####### # ####?????# | | ??????????????# # ! !#????????# | | ??????????????# ###########????????# " | | ??????????????# #??????????????????# "" " | | ??????????????# #??????????????????# "" "" | | ??????????????# #??????????????????# "" "" | | ??????????????# #??????????????????# " " | | ??????????????# ####???????????????# "" "" | | ??????????????# ##;#####???????????# "" "" | | ??????????????# # %T"! #???????????# "" "" | | ??????????????# # %" !#???????????# ?? " | | ??????????????# # % ""#?????????????? | | ??????????????# % + "#???????????????######## | | ?????????????##% % ; ""#??????????????????????? | | ?????????????#; % ; [ "@#??????????????????????? | | ?????????????##%% %# % " #??????????????????????? | | ??????????????#"######### #??????????????????????? | | ??????????????#??????????????????????????????????? | | ?????????????????????????????????????????????????? | | ?????????????????????????????????????????????????? | | ?????????????????????????????????????????????????? | | ?????????????????????????????????????????????????? | | ?????????????????????????????????????????????????? | | ?????????????????????????????????????????????????? | | ?????????????????????????????????????????????????? | | ?????????????????????????????????????????????????? | | ?????????????????????????????????????????????????? | | ?????????????????????????????????????????????????? | | ?????????????????????????????????????????????????? | | ?????????????????????????????????????????????????? | | ?????????????????????????????????????????????????? | | ?????????????????????????????????????????????????? | | ?????????????????????????????????????????????????? | | ?????????????????????????????????????????????????? | | ?????????????????????????????????????????????????? | | | | | | | | | +----------------------------------------------------+ Best States ------------- Heat Dissipation 62 Coolant Potential 100 Energy Generation 25 Energy Capacity 600 Matter Stores 300 Matter Capacity 300 Sight Range 16 Terrain Scan Density 1010 Armor Coverage 1650 Resistance: TH 10 Resistance: EX 50 Point Defense Rating 160 Weapon Cycling 25 Melee Speed Boost 20 Evasion (%) 55 Melee Accuracy 16 Recoil Reduction 5 Force Boost 40 Relay Coupler Types 6 Relay Coupler Value 133 Authchip Count 1 Item Schematics ----------------- Mak. Spear | -8/Materials | Scanalyzed Hrd. Heavy Armor Plating | -8/Materials | Scanalyzed System Restoration Module | -7/Factory | Hacked Robot Schematics ------------------ M-28 Smith | -7/Factory | Hacked Fabricated ------------ Imp. Titanium Leg | x2 | -7/Factory | Preloaded System Restoration Module | x2 | -7/Factory M-28 Smith | x1 | -4/Factory Alien Tech Used ----------------- Phase Armor Dimensional Node Initializer Sigix Broadsword Transdimensional Reconstructor Core Stripper High-powered Transdimensional Reconstructor Achievements -------------- None Challenges ------------ None Game ------ Seed ReinforcedHybridBrace Manual? 0 Play Time 07:53:57 Cumulative 554.9 hours Start 2022.10.05 @ 19:04:58 End 2022.10.06 @ 23:38:07 Sessions 11 Manual Loads 0 Difficulty Rogue Special Mode None Game No. 53 Rogue 43 Adventurer 5 Explorer 5 Win Type - Total 22 Types 6/5/4/0/3/1/2/0/1 Lore% 86 Gallery% 93 Achievement% 83 Wizard Run 0 Options --------- ASCII 0 Keyboard 1 Movement Arrows Keybinds 0 Fullscreen 2 Font 18/SmallcapsGlow Map View 76x50 Tactical HUD 1 Map Filters NONE Filters NONE Steam 1 RUN: 030e1e5f-ed95-4b05-95a5-2c63b8fd5360